bitfinex-derivatives/quotes_SOLF0:USTF0_20250529
["timestamp","ask_amount","ask_price","bid_price","bid_amount"]
[1748519767166,0.03689166,172.82,172.78,0.04124958]
[1748519767767,0.03689166,172.82,172.79,5.7848]
[1748519768265,5.82099166,172.82,172.78,5.82654958]
[1748519768668,0.03689166,172.82,172.78,0.04124958]
[1748519769464,0.03689166,172.82,172.79,5.7849]
[1748519770868,0.03689166,172.82,172.8,5.7845]
[1748519771458,0.03689166,172.82,172.79,5.7849]
[1748519771669,5.82099166,172.82,172.79,5.7849]
[1748519772070,0.03689166,172.82,172.79,5.7849]
[1748519773972,0.03689166,172.82,172.8,5.7847]
[1748519776271,0.03689166,172.82,172.79,5.785]
[1748519776876,0.03689166,172.82,172.78,0.04124958]
[1748519777571,0.03689166,172.82,172.8,5.7845]
[1748519779171,0.03689166,172.82,172.81,5.7844]
[1748519779376,0.03689166,172.82,172.78,0.04124958]
[1748519779977,0.03689166,172.82,172.79,5.785]
[1748519781079,5.82099166,172.82,172.79,5.785]
[1748519781777,5.82099166,172.82,172.78,0.04124958]
[1748519781778,0.03689166,172.82,172.8,5.7847]
[1748519782078,0.03689166,172.82,172.78,0.04124958]
[1748519782274,0.03689166,172.82,172.79,5.7849]
[1748519783775,0.03689166,172.82,172.8,5.7846]
[1748519787180,0.03689166,172.82,172.81,5.7844]
[1748519789782,0.03689166,172.82,172.8,5.7846]
[1748519791080,0.03689166,172.82,172.81,5.7844]
[1748519798891,0.03689166,172.82,172.8,5.7846]
[1748519800290,5.82109166,172.82,172.78,0.04124958]
[1748519802090,5.82109166,172.82,172.78,5.82644958]
[1748519802689,5.7845,172.81,172.78,5.82644958]
[1748519802991,0.03689166,172.82,172.79,5.7851]
[1748519803389,5.82119166,172.82,172.79,5.7851]
[1748519803890,0.03689166,172.82,172.79,5.7851]
[1748519805890,5.82099166,172.82,172.79,5.7851]
[1748519807086,0.03689166,172.82,172.8,5.7847]
[1748519809096,0.03689166,172.82,172.81,5.7844]
[1748519815408,0.03689166,172.82,172.8,5.7846]
[1748519816204,0.03689166,172.82,172.79,5.785]
[1748519817512,0.03689166,172.82,172.8,5.7848]
[1748519821510,5.82109166,172.82,172.79,5.785]
[1748519822011,5.82109166,172.82,172.8,5.7847]
[1748519822501,0.03689166,172.82,172.8,5.7847]
[1748519823611,0.03689166,172.82,172.81,5.7844]
[1748519824113,0.03689166,172.82,172.8,5.7846]
[1748519826315,0.03689166,172.82,172.81,5.7844]
[1748519828609,33.035,172.89,172.84,5.7831]
[1748519828809,33.035,172.89,172.81,3.21339802]
[1748519828810,31.02,172.89,172.81,3.21339802]
[1748519829012,5.7823,172.88,172.81,3.21339802]
[1748519829510,0.04326657,172.86,172.83,0.04082309]
[1748519829811,0.04326657,172.86,172.85,5.7831]
[1748519832022,0.04326657,172.86,172.84,5.7833]
[1748519835920,0.04326657,172.86,172.85,5.7831]
[1748519836924,0.04326657,172.86,172.84,5.7833]
[1748519838725,0.04326657,172.86,172.85,5.7831]
[1748519840535,5.82606657,172.86,172.83,0.04082309]
[1748519840727,0.04326657,172.86,172.83,0.04082309]
[1748519842023,5.82626657,172.86,172.83,5.82452309]
[1748519842524,3.21339802,172.84,172.76,32.9796]
[1748519843123,5.7843,172.82,172.78,5.7852]
[1748519843626,5.82416245,172.82,172.78,0.04445882]
[1748519844333,5.7845,172.81,172.78,5.82975882]
[1748519844725,5.7845,172.81,172.78,0.04445882]
[1748519847029,3.25326047,172.82,172.78,0.04445882]
[1748519849039,5.7851,172.79,172.78,0.04445882]
[1748519849832,5.7848,172.8,172.78,0.04445882]
[1748519850140,3.25326047,172.82,172.78,0.04445882]
[1748519850935,9.03756047,172.82,172.78,0.04445882]
[1748519851429,9.03756047,172.82,172.78,5.82985882]
[1748519851936,5.82416245,172.82,172.78,5.82985882]
[1748519852940,0.03986245,172.82,172.78,0.04445882]
[1748519853439,0.03986245,172.82,172.79,5.7849]
[1748519854038,0.03986245,172.82,172.8,5.7847]
[1748519854439,0.03986245,172.82,172.78,0.04445882]
[1748519854637,0.03986245,172.82,172.79,5.785]
[1748519856341,0.03986245,172.82,172.78,5.82985882]
[1748519857443,5.82396245,172.82,172.78,5.82985882]
[1748519858044,0.03986245,172.82,172.79,5.7851]
[1748519858236,0.03986245,172.82,172.78,0.04445882]
[1748519860044,5.82396245,172.82,172.78,5.82985882]
[1748519863045,5.82396245,172.82,172.78,0.04445882]
[1748519863646,0.03986245,172.82,172.78,0.04445882]
[1748519864549,0.03986245,172.82,172.78,5.82965882]
[1748519864550,5.82396245,172.82,172.78,5.82965882]
[1748519865950,5.7845,172.81,172.78,5.82965882]
[1748519870555,5.82396245,172.82,172.78,5.82965882]
[1748519873651,5.7847,172.81,172.78,0.04445882]
[1748519876052,5.7847,172.81,172.78,5.82985882]
[1748519882961,5.82406245,172.82,172.79,5.785]
[1748519884256,5.7845,172.81,172.78,5.82975882]
[1748519885854,5.7845,172.81,172.79,5.7851]
[1748519886456,5.7848,172.8,172.78,0.04445882]
[1748519886659,3.25326047,172.82,172.78,0.04445882]
[1748519887969,5.7845,172.81,172.78,5.82985882]
[1748519888967,9.03746047,172.82,172.78,5.82985882]
[1748519889558,5.82406245,172.82,172.78,5.82985882]
[1748519891466,5.82406245,172.82,172.79,5.7851]
[1748519892061,0.03986245,172.82,172.78,3.25785684]
[1748519892263,0.03986245,172.82,172.8,3.21339802]
[1748519892665,0.03986245,172.82,172.81,5.7844]
[1748519896075,5.7825,172.87,172.84,5.7833]
[1748519897082,5.82326732,172.87,172.84,5.82064148]
[1748519897483,0.04076732,172.87,172.84,0.03734148]
[1748519898881,0.04076732,172.87,172.86,5.7828]
[1748519901187,0.04076732,172.87,172.85,5.783]
[1748519906485,0.04076732,172.87,172.84,5.82064148]
[1748519907994,0.04076732,172.87,172.85,5.783]
[1748519908986,0.04076732,172.87,172.84,5.82064148]
[1748519910486,0.04076732,172.87,172.85,5.7831]
[1748519922094,0.04076732,172.87,172.84,0.03734148]
[1748519923099,0.04076732,172.87,172.85,5.7829]
[1748519923491,0.04076732,172.87,172.84,0.03734148]
[1748519923691,0.04076732,172.87,172.85,5.7828]
[1748519936409,0.04076732,172.87,172.86,5.7828]
[1748519940211,0.04076732,172.87,172.85,5.783]
[1748519941313,0.04076732,172.87,172.84,0.03734148]
[1748519942414,0.04076732,172.87,172.84,5.82054148]
[1748519943715,0.04076732,172.87,172.85,5.783]
[1748519953623,5.82346732,172.87,172.84,0.03734148]
[1748519956220,5.82346732,172.87,172.84,5.82074148]
[1748519957018,0.04076732,172.87,172.84,5.82074148]
[1748519957223,0.04076732,172.87,172.85,5.783]
[1748519963533,0.04076732,172.87,172.86,5.7828]
[1748519965429,30.7,172.9,172.88,5.7818]
[1748519965635,30.62,172.94,172.88,5.7818]
[1748519965828,5.7808,172.92,172.88,5.7818]
[1748519966535,0.04075982,172.92,172.88,5.82563195]
[1748519968325,5.82175982,172.92,172.88,5.82563195]
[1748519969234,5.7811,172.91,172.88,5.82563195]
[1748519969437,5.7811,172.91,172.88,0.04383195]
[1748519970633,5.7814,172.9,172.88,0.04383195]
[1748519971939,5.7818,172.89,172.88,0.04383195]
[1748519973137,5.7815,172.9,172.88,0.04383195]
[1748519974137,5.7818,172.89,172.88,0.04383195]
[1748519989441,5.7815,172.9,172.88,0.04383195]
[1748519991043,36.4012,172.91,172.88,0.04383195]
[1748519992250,30.62,172.91,172.88,5.82593195]
[1748519995959,36.4011,172.91,172.88,0.04383195]
[1748519996557,5.7815,172.9,172.88,0.04383195]
[1748519997254,36.4012,172.91,172.88,0.04383195]
[1748519998862,5.7814,172.9,172.88,0.04383195]
[1748519999260,30.62,172.91,172.88,0.04383195]
[1748519999557,5.7817,172.9,172.88,0.04383195]
[1748520000059,30.62,172.91,172.88,0.04383195]
[1748520000257,3.21339802,172.9,172.88,0.04383195]
[1748520000456,5.7818,172.89,172.88,0.04383195]
[1748520002059,5.7828,172.86,172.78,30.54]
[1748520002260,3.21339802,172.88,172.8,3.21339802]
[1748520002862,3.21339802,172.88,172.78,33.75339802]
[1748520003062,0.03801073,172.85,172.82,0.03829142]
[1748520003257,3.21339802,172.84,172.82,0.03829142]
[1748520003453,3.21339802,172.84,172.72,3.21339802]
[1748520003454,30.54,172.83,172.72,3.21339802]
[1748520003658,5.7857,172.78,172.72,3.21339802]
[1748520004157,36.4321,172.83,172.71,33.75339802]
[1748520004357,5.7849,172.8,172.75,0.0417109]
[1748520004560,0.03976915,172.79,172.75,0.0417109]
[1748520005463,5.82516915,172.79,172.75,5.8281109]
[1748520006563,5.82516915,172.79,172.75,0.0417109]
[1748520006564,3.25316717,172.79,172.75,0.0417109]
[1748520006764,0.03976915,172.79,172.75,0.0417109]
[1748520006960,33.79316717,172.79,172.75,0.0417109]
[1748520007364,3.21339802,172.77,172.75,0.0417109]
[1748520007563,8.99919802,172.77,172.75,0.0417109]
[1748520009162,3.21339802,172.77,172.75,0.0417109]
[1748520010465,30.57976915,172.79,172.75,0.0417109]
[1748520010669,30.57976915,172.79,172.76,5.7858]
[1748520011265,30.57976915,172.79,172.75,5.8282109]
[1748520011467,33.79316717,172.79,172.75,0.0417109]
[1748520011766,3.21339802,172.77,172.75,0.0417109]
[1748520011964,30.57976915,172.79,172.75,0.0417109]
[1748520012870,5.7858,172.77,172.75,0.0417109]
[1748520013665,5.7857,172.78,172.75,0.0417109]
[1748520013965,30.57976915,172.79,172.75,0.0417109]
[1748520014271,30.54,172.78,172.75,0.0417109]
[1748520014469,36.3257,172.78,172.75,0.0417109]
[1748520015464,0.03976915,172.79,172.75,0.0417109]
[1748520015662,30.57976915,172.79,172.75,0.0417109]
[1748520016269,30.57976915,172.79,172.77,5.7855]
[1748520017168,30.57976915,172.79,172.78,5.7855]
[1748520018175,30.57976915,172.79,172.75,0.0417109]
[1748520018570,5.7857,172.78,172.75,0.0417109]
[1748520019074,30.57976915,172.79,172.75,0.0417109]
[1748520020578,5.7857,172.78,172.75,5.8282109]
[1748520022169,36.36496915,172.79,172.75,5.8282109]
[1748520022872,5.7855,172.78,172.75,0.0417109]
[1748520023273,30.57976915,172.79,172.75,0.0417109]
[1748520023480,30.57976915,172.79,172.75,5.8279109]
[1748520023971,36.36506915,172.79,172.75,5.8279109]
[1748520024371,30.57976915,172.79,172.75,5.8279109]
[1748520024575,30.57976915,172.79,172.75,0.0417109]
[1748520025479,30.57976915,172.79,172.75,5.8282109]
[1748520025678,30.57976915,172.79,172.75,0.0417109]
[1748520026086,30.57976915,172.79,172.75,5.8281109]
[1748520026577,30.57976915,172.79,172.75,0.0417109]
[1748520028173,5.7861,172.76,172.75,0.0417109]
[1748520028379,5.7861,172.76,172.65,1.9125]
[1748520028380,30.57976915,172.79,172.65,32.3925]
[1748520028575,30.48,172.78,172.65,32.3925]
[1748520028978,5.8921,172.83,172.66,5.02514864]
[1748520028979,30.48,172.81,172.66,5.02514864]
[1748520029479,0.03793707,172.75,172.74,5.7868]
[1748520029670,0.03649883,172.76,172.73,0.03859043]
[1748520029870,0.03649883,172.76,172.73,0.0424361]
[1748520030281,0.03649883,172.76,172.75,5.7863]
[1748520036781,0.03649883,172.76,172.73,0.0424361]
[1748520036980,30.51649883,172.76,172.73,0.0424361]
[1748520037177,5.7866,172.75,172.73,0.0424361]
[1748520037687,30.51649883,172.76,172.73,0.0424361]
[1748520038489,5.7865,172.75,172.73,0.0424361]
[1748520039892,30.51649883,172.76,172.65,30.48]
[1748520040192,30.48,172.76,172.65,30.48]
[1748520040383,5.7873,172.73,172.69,5.7884]
[1748520040782,5.82732459,172.73,172.69,5.82961285]
[1748520041187,0.04002459,172.73,172.7,5.788]
[1748520041591,0.04002459,172.73,172.69,0.04121285]
[1748520041783,0.04002459,172.73,172.72,5.7875]
[1748520042491,0.04002459,172.73,172.69,30.52121285]
[1748520042492,32.4979,172.79,172.75,5.7863]
[1748520042887,38.2832,172.79,172.75,5.7863]
[1748520043092,30.48,172.79,172.76,5.7861]
[1748520043293,30.52415813,172.79,172.76,5.82285765]
[1748520043594,30.52415813,172.79,172.76,0.03675765]
[1748520044087,0.04415813,172.79,172.77,5.7858]
[1748520044897,0.04415813,172.79,172.78,5.7855]
[1748520045195,0.04415813,172.79,172.76,0.03675765]
[1748520045396,0.04415813,172.79,172.77,5.7857]
[1748520046995,0.04415813,172.79,172.78,5.7855]
[1748520047495,0.04415813,172.79,172.77,5.7857]
[1748520047992,0.04415813,172.79,172.76,0.03675765]
[1748520048492,0.04415813,172.79,172.78,5.7855]
[1748520050796,30.48,172.85,172.82,5.7839]
[1748520051595,30.52434341,172.85,172.82,5.82375014]
[1748520052098,36.30754341,172.85,172.82,5.82375014]
[1748520054900,5.7835,172.84,172.82,0.03985014]
[1748520055200,30.52434341,172.85,172.82,0.03985014]
[1748520055595,36.30754341,172.85,172.82,0.03985014]
[1748520055890,0.04434341,172.85,172.82,0.03985014]
[1748520056290,0.04434341,172.85,172.84,5.7835]
[1748520057198,30.46,172.91,172.88,5.7821]
[1748520057504,36.2412,172.91,172.83,2.0707]
[1748520058099,0.041729,172.89,172.85,0.03662552]
[1748520058294,0.041729,172.89,172.86,5.7826]
[1748520058502,0.041729,172.89,172.85,0.03662552]
[1748520059197,5.823729,172.89,172.85,0.03662552]
[1748520059605,0.041729,172.89,172.85,0.03662552]
[1748520060399,5.7825,172.87,172.85,0.03662552]
[1748520060599,0.041729,172.89,172.85,0.03662552]
[1748520061000,5.7828,172.86,172.85,0.03662552]
[1748520064108,5.7825,172.87,172.85,0.03662552]
[1748520064309,0.041729,172.89,172.85,0.03662552]
[1748520064907,5.7827,172.87,172.85,0.03662552]
[1748520065509,5.7828,172.86,172.85,0.03662552]
[1748520067307,5.784,172.83,172.79,5.7851]
[1748520067505,30.4,172.87,172.78,32.3426]
[1748520067703,5.7838,172.84,172.8,5.7845]
[1748520068202,5.7838,172.84,172.8,5.82679523]
[1748520068408,5.7838,172.84,172.8,0.04229523]
[1748520068409,0.04330125,172.84,172.8,0.04229523]
[1748520069102,0.04330125,172.84,172.83,5.7838]
[1748520072109,0.04330125,172.84,172.8,0.04229523]
[1748520072608,5.7841,172.83,172.8,0.04229523]
[1748520072808,0.04330125,172.84,172.8,0.04229523]
[1748520073007,0.04330125,172.84,172.71,32.4547]
[1748520073203,6.0675,172.85,172.71,32.4547]
[1748520073606,5.02514864,172.83,172.71,32.4547]
[1748520073807,30.4,172.82,172.71,2.0547]
[1748520074014,0.03825427,172.78,172.75,0.04135757]
[1748520074311,30.43825427,172.78,172.75,0.04135757]
[1748520076915,36.22375427,172.78,172.75,0.04135757]
[1748520077815,36.22375427,172.78,172.75,5.82785757]
[1748520078712,30.43825427,172.78,172.75,5.82785757]
[1748520078912,30.43825427,172.78,172.75,0.04135757]
[1748520079415,5.7861,172.76,172.75,0.04135757]
[1748520081919,5.7858,172.77,172.75,0.04135757]
[1748520082514,30.43825427,172.78,172.66,1.9336]
[1748520082715,3.9044,172.77,172.66,1.9336]
[1748520083115,3.9044,172.77,172.68,5.7885]
[1748520083518,0.03974864,172.74,172.71,0.03831818]
[1748520083721,5.7874,172.73,172.71,0.03831818]
[1748520084918,36.24664864,172.74,172.71,0.03831818]
[1748520085516,5.7872,172.73,172.71,0.03831818]
[1748520085714,30.45974864,172.74,172.71,0.03831818]
[1748520087419,5.7873,172.73,172.67,5.789]
[1748520087819,36.24664864,172.74,172.68,5.7887]
[1748520088117,30.45974864,172.74,172.65,30.42]
[1748520088322,30.45974864,172.74,172.68,0.04230814]
[1748520089116,30.45974864,172.74,172.71,5.7877]
[1748520089717,30.45974864,172.74,172.7,5.788]
[1748520089913,30.38,172.73,172.68,0.04230814]
[1748520090117,5.7875,172.72,172.68,0.04230814]
[1748520090517,30.38,172.73,172.68,0.04230814]
[1748520091320,5.7884,172.7,172.68,0.04230814]
[1748520092321,5.7885,172.69,172.68,0.04230814]
[1748520093826,5.82883367,172.7,172.68,0.04230814]
[1748520094128,0.04063367,172.7,172.68,0.04230814]
[1748520095829,5.82913367,172.7,172.68,0.04230814]
[1748520096323,0.04063367,172.7,172.68,0.04230814]
[1748520096724,5.7885,172.69,172.68,0.04230814]
[1748520097032,30.38,172.69,172.62,5.7908]
[1748520097333,5.789,172.68,172.62,5.7908]
[1748520097832,36.1686,172.69,172.63,5.7904]
[1748520098032,0.04045706,172.68,172.64,0.0205251]
[1748520099532,0.04045706,172.68,172.65,5.7898]
[1748520100332,0.04045706,172.68,172.64,0.0205251]
[1748520100931,0.04045706,172.68,172.67,5.7891]
[1748520103736,0.04045706,172.68,172.64,0.0205251]
[1748520105229,0.04045706,172.68,172.67,5.7891]
[1748520105533,0.04045706,172.68,172.66,5.7893]
[1748520106933,0.04045706,172.68,172.64,0.0205251]
[1748520107429,0.04045706,172.68,172.65,5.7895]
[1748520109029,0.04045706,172.68,172.66,5.7894]
[1748520114139,0.04045706,172.68,172.67,5.7891]
[1748520114332,0.04045706,172.68,172.64,0.0205251]
[1748520114527,0.04045706,172.68,172.66,5.7893]
[1748520116228,0.04045706,172.68,172.67,5.789]
[1748520116835,0.04045706,172.68,172.64,0.0205251]
[1748520118042,0.04045706,172.68,172.66,5.7894]
[1748520118537,0.04045706,172.68,172.65,5.7897]
[1748520118930,0.04045706,172.68,172.64,0.0205251]
[1748520119739,5.7894,172.67,172.64,0.0205251]
[1748520120827,5.7897,172.65,172.64,0.0205251]
[1748520124440,30.40045706,172.68,172.55,530.4]
[1748520124638,30.36,172.67,172.55,530.4]
[1748520125544,5.7914,172.61,172.56,5.7925]
[1748520126050,5.02514864,172.62,172.44,62.0]
[1748520126355,0.03926802,172.55,172.47,3.9066]
[1748520126544,0.03926802,172.55,172.48,5.02514864]
[1748520126745,30.36,172.63,172.49,30.36]
[1748520127450,30.36,172.63,172.51,5.02514864]
[1748520127647,30.36,172.63,172.52,2.0334]
[1748520127848,0.03854193,172.59,172.56,0.03959517]
[1748520128049,36.1488,172.68,172.57,30.36]
[1748520128252,30.36,172.68,172.58,2.0334]
[1748520128750,36.1488,172.68,172.63,5.7903]
[1748520128953,0.04278686,172.67,172.64,0.03756723]
[1748520129657,0.04278686,172.67,172.64,5.82756723]
[1748520130050,0.04278686,172.67,172.64,0.03756723]
[1748520130454,5.83208686,172.67,172.64,0.03756723]
[1748520131155,0.04278686,172.67,172.64,5.82766723]
[1748520131754,0.04278686,172.67,172.64,0.03756723]
[1748520135557,5.7897,172.65,172.64,0.03756723]
[1748520136258,5.7907,172.63,172.57,30.36]
[1748520136460,34.216,172.68,172.57,30.36]
[1748520136758,30.36,172.67,172.57,30.36]
[1748520136959,5.7901,172.64,172.57,30.36]
[1748520137159,30.36,172.67,172.59,5.7917]
[1748520137354,5.7907,172.63,172.61,0.03846912]
[1748520137555,0.03942006,172.65,172.61,0.03846912]
[1748520137760,30.36,172.63,172.51,530.68]
[1748520137954,30.36,172.63,172.51,30.36]
[1748520138160,30.36,172.63,172.43,500.36]
[1748520138161,1.913,172.62,172.44,30.36]
[1748520138362,5.02514864,172.59,172.44,36.2583]
[1748520138552,5.794,172.53,172.44,36.2583]
[1748520138757,0.04031288,172.5,172.49,5.7951]
[1748520139156,0.04031288,172.5,172.46,5.7959]
[1748520139357,0.04031288,172.5,172.44,34.2642]
[1748520139659,0.04031288,172.5,172.48,5.7951]
[1748520140659,0.04031288,172.5,172.47,5.7957]
[1748520141259,0.04031288,172.5,172.44,34.2642]
[1748520141864,0.04031288,172.5,172.49,5.7951]
[1748520143364,0.04031288,172.5,172.47,5.7954]
[1748520143565,0.04031288,172.5,172.44,34.2642]
[1748520144566,0.04031288,172.5,172.48,5.7951]
[1748520144864,0.04031288,172.5,172.44,34.2642]
[1748520145867,0.04031288,172.5,172.46,5.7958]
[1748520146470,5.83511288,172.5,172.44,34.2642]
[1748520146770,0.04031288,172.5,172.44,34.2642]
[1748520146969,0.04031288,172.5,172.47,5.7957]
[1748520147763,0.04031288,172.5,172.46,5.796]
[1748520147968,5.83501288,172.5,172.46,5.796]
[1748520149371,5.7951,172.49,172.45,5.7963]
[1748520149571,0.04031288,172.5,172.44,34.2642]
[1748520149972,5.83531288,172.5,172.46,5.7961]
[1748520151270,0.04031288,172.5,172.44,34.2642]
[1748520151470,0.04031288,172.5,172.44,39.28934864]
[1748520151667,0.04031288,172.5,172.49,5.7951]
[1748520151862,0.04031288,172.5,172.44,39.28934864]
[1748520151863,36.1528,172.56,172.48,30.36]
[1748520152068,30.36,172.56,172.48,30.36]
[1748520152872,0.03860049,172.54,172.5,0.03992678]
[1748520153972,0.03860049,172.54,172.53,5.7935]
[1748520157979,30.36,172.59,172.57,5.7921]
[1748520158179,536.511,172.62,172.52,30.36]
[1748520158582,530.72,172.62,172.52,30.36]
[1748520158884,5.7916,172.6,172.52,30.36]
[1748520159080,0.0406336,172.59,172.55,0.03946907]
[1748520159570,0.0406336,172.59,172.57,5.7923]
[1748520160376,0.0406336,172.59,172.56,5.7926]
[1748520160981,0.0406336,172.59,172.55,5.83246907]
[1748520161581,5.8324336,172.59,172.56,5.7927]
[1748520161887,0.0406336,172.59,172.55,0.03946907]
[1748520163179,0.0406336,172.59,172.49,30.34]
[1748520163180,30.34,172.58,172.49,30.34]
[1748520163577,5.793,172.56,172.52,5.7939]
[1748520163975,5.83434438,172.56,172.52,5.83392609]
[1748520164184,5.83434438,172.56,172.53,5.7937]
[1748520165080,0.04134438,172.56,172.53,5.7937]
[1748520166184,0.04134438,172.56,172.54,5.7933]
[1748520167281,0.04134438,172.56,172.55,5.7931]
[1748520167586,0.04134438,172.56,172.52,0.04002609]
[1748520168085,0.04134438,172.56,172.54,5.7931]
[1748520169284,0.04134438,172.56,172.55,5.7931]
[1748520176386,4.438e-05,172.56,172.55,5.7931]
[1748520179095,4.438e-05,172.56,172.52,0.04002609]
[1748520179594,5.7934,172.55,172.52,0.04002609]
[1748520180087,4.438e-05,172.56,172.52,0.04002609]
[1748520180793,4.438e-05,172.56,172.55,5.7931]
[1748520187392,30.3,172.63,172.55,30.3]
[1748520187596,30.3,172.66,172.55,30.3]
[1748520187994,5.7898,172.65,172.62,5.7906]
[1748520188194,30.3,172.66,172.55,30.3]
[1748520188397,0.04194193,172.62,172.59,0.03817858]
[1748520189300,0.04194193,172.62,172.61,5.7911]
[1748520192499,0.04194193,172.62,172.6,5.7913]
[1748520193398,0.04194193,172.62,172.61,5.7911]
[1748520194594,0.04194193,172.62,172.6,5.7913]
[1748520195096,0.04194193,172.62,172.59,36.12977858]
[1748520195302,5.7913,172.61,172.59,0.03817858]
[1748520195500,0.04194193,172.62,172.59,0.03817858]
[1748520197900,0.04194193,172.62,172.59,5.82967858]
[1748520198301,0.04194193,172.62,172.59,0.03817858]
[1748520198503,0.04194193,172.62,172.61,5.7911]
[1748520203203,0.04194193,172.62,172.6,5.7913]
[1748520205004,0.04194193,172.62,172.61,5.7911]
[1748520215712,0.04194193,172.62,172.59,0.03817858]
[1748520215907,5.7914,172.6,172.59,0.03817858]
[1748520216503,3.9943,172.61,172.54,5.7934]
[1748520216705,3.9943,172.61,172.5,30.24]
[1748520216911,1.9458,172.6,172.5,30.24]
[1748520217212,1.9458,172.6,172.47,32.2426]
[1748520217213,6.97094864,172.6,172.47,32.2426]
[1748520217409,6.97094864,172.6,172.52,0.0403649]
[1748520217410,0.04101048,172.55,172.52,0.0403649]
[1748520218115,5.7937,172.53,172.52,0.0403649]
[1748520222415,0.04101048,172.55,172.45,1.9859]
[1748520222416,5.7949,172.5,172.45,1.9859]
[1748520222618,5.7949,172.5,172.46,5.7959]
[1748520223014,5.7945,172.51,172.44,30.26]
[1748520223213,4.0328,172.54,172.44,30.26]
[1748520223409,0.04011329,172.51,172.44,30.26]
[1748520223617,5.83471329,172.51,172.44,30.26]
[1748520223816,0.04011329,172.51,172.44,30.26]
[1748520224118,5.7951,172.49,172.44,30.26]
[1748520225020,5.7948,172.5,172.46,5.7961]
[1748520228116,5.7951,172.49,172.46,5.7961]
[1748520228421,5.7951,172.49,172.45,5.7963]
[1748520228914,5.7948,172.5,172.46,5.796]
[1748520229119,0.04456073,172.5,172.41,36.1823]
[1748520230120,0.04456073,172.5,172.47,5.7955]
[1748520230616,0.04456073,172.5,172.41,36.1823]
[1748520231418,0.04456073,172.5,172.47,5.7955]
[1748520231815,0.04456073,172.5,172.41,36.1823]
[1748520232215,0.04456073,172.5,172.47,5.7955]
[1748520233225,0.04456073,172.5,172.48,5.7954]
[1748520234324,0.04456073,172.5,172.47,5.7957]
[1748520234628,5.83936073,172.5,172.47,5.7957]
[1748520234924,0.04456073,172.5,172.46,5.7961]
[1748520235126,5.83946073,172.5,172.46,5.7961]
[1748520236028,5.83946073,172.5,172.47,5.7957]
[1748520237428,0.04456073,172.5,172.41,36.1823]
[1748520237632,0.04456073,172.5,172.41,30.26]
[1748520238934,5.83956073,172.5,172.46,5.7959]
[1748520239133,0.04456073,172.5,172.46,5.7959]
[1748520239335,0.04456073,172.5,172.41,30.26]
[1748520239932,5.7956,172.48,172.44,5.7966]
[1748520240329,0.04456073,172.5,172.41,30.26]
[1748520240637,0.04093865,172.47,172.41,30.26]
[1748520241235,0.04093865,172.47,172.45,5.7962]
[1748520242235,0.04093865,172.47,172.46,5.7961]
[1748520247646,3.865e-05,172.47,172.46,5.7961]
[1748520248543,3.865e-05,172.47,172.46,7.7892]
[1748520249345,32.3028,172.58,172.46,7.7931]
[1748520249546,32.3028,172.58,172.47,3.9788]
[1748520249845,38.0951,172.58,172.47,3.9788]
[1748520250045,38.0951,172.58,172.55,5.7931]
[1748520250244,38.13745941,172.58,172.55,5.83551905]
[1748520250446,36.07465941,172.58,172.55,5.83551905]
[1748520251344,36.07465941,172.58,172.55,0.04241905]
[1748520251549,30.28235941,172.58,172.55,0.04241905]
[1748520252554,5.7927,172.56,172.55,0.04241905]
[1748520252848,30.28235941,172.58,172.55,0.04241905]
[1748520253044,30.28235941,172.58,172.55,5.83531905]
[1748520253847,30.28235941,172.58,172.55,0.04241905]
[1748520255346,5.7927,172.56,172.55,0.04241905]
[1748520255750,506.48,172.56,172.37,30.24]
[1748520255947,5.7957,172.48,172.43,5.7968]
[1748520256145,30.24,172.48,172.43,5.7968]
[1748520256350,5.796,172.47,172.43,5.7968]
[1748520256745,5.83906898,172.47,172.43,5.7968]
[1748520258350,0.04306898,172.47,172.32,30.24]
[1748520258558,0.03834441,172.41,172.33,6.0336]
[1748520258743,0.03834441,172.41,172.4,5.7981]
[1748520259459,30.24,172.48,172.37,30.24]
[1748520260157,5.7958,172.47,172.37,30.24]
[1748520260455,0.04277133,172.44,172.4,0.0432497]
[1748520260655,0.04277133,172.44,172.43,5.7971]
[1748520272057,30.22,172.51,172.41,36.0207]
[1748520272760,30.22,172.51,172.48,5.7952]
[1748520272959,30.26078584,172.51,172.48,0.04460383]